fUSD/lending_fUSD_20251223
["ID","MTS","AMOUNT","RATE_DAILY","PERIOD"]
[399569873,1766505033078,-500.0,0.00014085,2]
[399569874,1766505033090,-500.0,0.00014085,2]
[399569875,1766505033101,-500.0,0.00014085,2]
[399569876,1766505033113,-500.0,0.00014085,2]
[399569877,1766505033127,-500.0,0.00014085,2]
[399569878,1766505033139,-500.0,0.00014085,2]
[399569879,1766505033150,-500.0,0.00014085,2]
[399569880,1766505033161,-500.0,0.00014085,2]
[399569881,1766505033173,-547.451702,0.00014085,2]
[399569882,1766505033187,-500.0,0.00014085,2]
[399569883,1766505033198,-360.12209299,0.00014085,2]
[399569884,1766505033209,-500.0,0.00014085,2]
[399569885,1766505033220,-500.0,0.00014085,2]
[399569886,1766505033231,-500.0,0.00014085,2]
[399569887,1766505033242,-500.0,0.00014085,2]
[399569888,1766505033253,-500.0,0.00014085,2]
[399569889,1766505033265,-500.0,0.00014085,2]
[399569890,1766505033276,-500.0,0.00014085,2]
[399569891,1766505033287,-500.0,0.00014085,2]
[399569892,1766505033297,-500.0,0.00014085,2]
[399569893,1766505033310,-500.0,0.00014085,2]
[399569894,1766505033321,-500.0,0.00014085,2]
[399569895,1766505033331,-500.0,0.00014085,2]
[399569896,1766505033342,-574.61496138,0.00014085,2]
[399569897,1766505033353,-46273.16876934,0.00014086,2]
[399569898,1766505033366,-14278.34743416,0.00014086,2]
[399569899,1766505033381,-407.0,0.00014086,2]
[399569900,1766505033394,-295.99999997,0.00014086,2]
[399569901,1766505033408,-48496.15879661,0.00014086,2]
[399569903,1766505033449,-300.0,0.00014086,2]
[399569940,1766505037583,-759660.30972488,0.00014086,2]
[399569941,1766505037596,-100381.80680375,0.00014086,2]
[399569942,1766505037609,-598.42417427,0.00014086,2]
[399569948,1766505037665,-3354.35483825,0.00014086,2]
[399569952,1766505037752,-8785.48185222,0.00014086,2]
[399569972,1766505039656,-211.33012674,0.00012882,2]
[399569973,1766505039666,-63.2756557,0.00014086,2]
[399569974,1766505039684,-1368.08453927,0.00014086,2]
[399569975,1766505039697,-15737.58741158,0.00014086,2]
[399569976,1766505039708,-600.0,0.00014086,2]
[399569977,1766505039718,-2068.87,0.00014119,2]
[399569978,1766505039728,-150.0,0.00014185,2]
[399569979,1766505039738,-894.91811465,0.00014185,2]
[399569980,1766505039748,-150.0,0.00014185,2]
[399569981,1766505039758,-743.85494776,0.00014186,2]
[399569982,1766505039768,-3626.11898828,0.00014186,2]
[399569983,1766505039780,-1889.44721806,0.00014186,2]
[399569984,1766505039790,-10113.03397942,0.00014186,2]
[399569985,1766505039803,-3115.64886344,0.00014186,2]
[399569986,1766505039815,-8963.955,0.00014186,2]
[399569987,1766505039860,-2017.26405714,0.00014186,2]
[399569988,1766505039870,-1264.1867,0.00014186,2]
[399569989,1766505039880,-151.0,0.00014276,2]
[399569990,1766505039890,-500.0,0.00014285,2]
[399569991,1766505039901,-500.0,0.00014285,2]
[399569992,1766505039911,-500.0,0.00014285,2]
[399569993,1766505039921,-494.37840542,0.00014285,2]
[399569994,1766505039933,-5.62159458,0.00014285,2]
[399569995,1766505039943,-500.0,0.00014285,2]
[399569996,1766505039954,-500.0,0.00014285,2]
[399569997,1766505039965,-500.0,0.00014285,2]
[399569998,1766505039975,-500.0,0.00014285,2]
[399569999,1766505039986,-508.77600646,0.00014285,2]
[399570000,1766505039996,-509.32,0.00014285,2]
[399570001,1766505040007,-509.32,0.00014285,2]
[399570002,1766505040016,-509.32,0.00014285,2]
[399570003,1766505040028,-509.32,0.00014285,2]
[399570004,1766505040038,-500.0,0.00014285,2]
[399570005,1766505040049,-500.0,0.00014285,2]
[399570007,1766505040060,-403.12239896,0.00014285,2]
[399570010,1766505040073,-96.87760104,0.00014285,2]
[399570012,1766505040088,-531.25264543,0.00014285,2]
[399570014,1766505040098,-500.0,0.00014285,2]
[399570016,1766505040109,-500.0,0.00014285,2]
[399570018,1766505040120,-500.0,0.00014285,2]
[399570021,1766505040130,-500.0,0.00014285,2]
[399570023,1766505040141,-482.26053294,0.00014285,2]
[399570025,1766505040151,-500.0,0.00014285,2]
[399570027,1766505040162,-525.99859536,0.00014285,2]
[399570028,1766505040172,-500.0,0.00014285,2]
[399570031,1766505040182,-500.0,0.00014285,2]
[399570032,1766505040192,-500.0,0.00014285,2]
[399570033,1766505040202,-500.0,0.00014285,2]
[399570034,1766505040214,-500.0,0.00014285,2]
[399570035,1766505040522,-500.0,0.00014285,2]
[399570036,1766505040533,-500.0,0.00014285,2]
[399570037,1766505040543,-500.0,0.00014285,2]
[399570038,1766505040557,-370.97583972,0.00014285,2]
[399570039,1766505040567,-500.0,0.00014285,2]
[399570040,1766505040576,-500.0,0.00014285,2]
[399570041,1766505040586,-500.0,0.00014285,2]
[399570042,1766505040596,-500.0,0.00014285,2]
[399570043,1766505040606,-500.0,0.00014285,2]
[399570044,1766505040615,-500.0,0.00014285,2]
[399570045,1766505040625,-500.0,0.00014285,2]
[399570046,1766505040636,-500.0,0.00014285,2]
[399570047,1766505040645,-604.31886581,0.00014285,2]
[399570048,1766505040655,-500.0,0.00014285,2]
[399570049,1766505040665,-500.0,0.00014285,2]
[399570050,1766505040675,-425.37,0.00014285,2]
[399570051,1766505040684,-250.42,0.00014359,2]
[399570052,1766505040694,-600.0,0.0001436,2]
[399570053,1766505040703,-33494.9637,0.00014386,2]
[399570054,1766505040714,-1000.0,0.00014386,2]
[399570055,1766505040724,-1069.02,0.00014485,2]
[399570056,1766505040734,-1069.02,0.00014485,2]
[399570057,1766505040744,-1069.02,0.00014485,2]
[399570058,1766505040754,-1069.02,0.00014485,2]
[399570059,1766505040764,-250.43,0.00014633,2]
[399570060,1766505040775,-600.0,0.00014634,2]
[399570061,1766505040785,-743.85494773,0.00014638,2]
[399570062,1766505040795,-1000.0,0.00014908,2]
[399570063,1766505040805,-600.0,0.00014908,2]
[399570064,1766505040815,-1378.0,0.00014928,2]
[399570065,1766505040825,-200.0,0.00014931,2]
[399570066,1766505040834,-743.85494773,0.00015091,2]
[399570067,1766505040844,-600.0,0.00015182,2]
[399570068,1766505040854,-151.0,0.00015194,2]
[399570069,1766505040864,-255.0,0.00015306,2]
[399570070,1766505040873,-166.66,0.0001535,2]
[399570071,1766505040883,-272.19458909,0.00015392,2]
[399570072,1766505040893,-600.0,0.00015456,2]
[399570073,1766505040903,-743.85494773,0.00015543,2]
[399570074,1766505040912,-3149.0,0.00015673,2]
[399570075,1766505040925,-3457.0,0.00015673,2]
[399570076,1766505040935,-1609.0,0.00015673,2]
[399570077,1766505040945,-612.0,0.00015673,2]
[399570078,1766505040954,-1326.0,0.00015673,2]
[399570079,1766505040964,-1263.0,0.00015673,2]
[399570080,1766505040974,-468.0,0.00015673,2]
[399570081,1766505040987,-923.123,0.00015673,2]
[399570082,1766505040997,-4806.0,0.00015673,2]
[399570083,1766505041007,-564.0,0.00015673,2]
[399570084,1766505041017,-2430.0,0.00015673,2]
[399570085,1766505041029,-272.19458909,0.00015694,2]
[399570086,1766505041039,-600.0,0.0001573,2]
[399570087,1766505041049,-1069.02,0.00015782,2]
[399570088,1766505041062,-196.22588074,0.00015783,2]
[399570089,1766505041072,-500.0,0.00015783,2]
[399570090,1766505041081,-500.0,0.00015783,2]
[399570091,1766505041091,-904.3243335,0.0001589,2]
[399570092,1766505041101,-1090.24693266,0.00015899,5]
[399570093,1766505041111,-1090.24693266,0.00015899,5]
[399570094,1766505041121,-500.0,0.00015899,2]
[399570095,1766505041132,-500.0,0.00015899,2]
[399570096,1766505041142,-171614.32948711,0.000159,3]
[399570097,1766505041153,-166.66,0.00015984,2]
[399570098,1766505041163,-743.85494773,0.00015995,2]
[399570099,1766505041173,-272.19458909,0.00015995,2]
[399570100,1766505041183,-385.52052788,0.00015995,2]
[399570101,1766505041192,-500.0,0.00015999,2]
[399570102,1766505041202,-557.27405055,0.00015999,2]
[399570103,1766505041211,-509.32,0.00015999,2]
[399570104,1766505041221,-509.32,0.00015999,2]
[399570105,1766505041230,-509.32,0.00015999,2]
[399570106,1766505041240,-500.0,0.00015999,2]
[399570107,1766505041250,-500.0,0.00015999,2]
[399570108,1766505041260,-500.0,0.00015999,2]
[399570109,1766505041270,-600.0,0.00016004,2]
[399570110,1766505041280,-322.6107,0.00016056,2]
[399570111,1766505041290,-574.12855637,0.00016056,2]
[399570112,1766505041300,-500.0,0.00016056,2]
[399570113,1766505041310,-500.0,0.00016056,2]
[399570114,1766505041320,-1108.0,0.00016056,2]
[399570115,1766505041330,-500.0,0.00016056,2]
[399570116,1766505041340,-500.0,0.00016056,2]
[399570117,1766505041350,-500.0,0.00016056,2]
[399570118,1766505041360,-500.0,0.00016056,2]
[399570119,1766505041370,-500.0,0.00016056,2]
[399570120,1766505041379,-500.0,0.00016056,2]
[399570121,1766505041389,-500.0,0.00016056,2]
[399570122,1766505041400,-500.0,0.00016056,2]
[399570123,1766505041409,-500.0,0.00016056,2]
[399570124,1766505041419,-157.8410325,0.00016056,2]
[399570125,1766505041429,-150.99,0.00016116,2]
[399570126,1766505041439,-9999.99,0.00016116,2]
[399570127,1766505041448,-299.99,0.00016116,4]
[399570128,1766505041458,-27978.45,0.00016116,2]
[399570129,1766505041468,-697.76,0.00016116,2]
[399570130,1766505041478,-687.539,0.0001617,2]
[399570131,1766505041488,-158.435,0.0001617,2]
[399570132,1766505041498,-600.0,0.00016278,2]
[399570133,1766505041508,-272.19458909,0.00016297,2]
[399570134,1766505041517,-385.52052788,0.00016297,2]
[399570135,1766505041527,-1000.0,0.00016331,2]
[399570136,1766505041537,-1000.0,0.00016331,2]
[399570137,1766505041547,-500.0,0.00016438,2]
[399570138,1766505041557,-500.0,0.00016438,2]
[399570139,1766505041568,-500.0,0.00016438,2]
[399570140,1766505041577,-500.0,0.00016438,2]
[399570141,1766505041587,-500.0,0.00016438,2]
[399570142,1766505041597,-500.0,0.00016438,2]
[399570143,1766505041606,-500.0,0.00016438,2]
[399570144,1766505041617,-500.0,0.00016438,2]
[399570145,1766505041627,-500.0,0.00016438,2]
[399570146,1766505041637,-500.0,0.00016438,2]
[399570147,1766505041647,-500.0,0.00016438,2]
[399570148,1766505041657,-500.0,0.00016438,2]
[399570149,1766505041667,-500.0,0.00016438,2]
[399570150,1766505041677,-500.0,0.00016438,2]
[399570151,1766505041687,-500.0,0.00016438,2]
[399570152,1766505041698,-500.0,0.00016438,2]
[399570153,1766505041708,-500.0,0.00016438,2]
[399570154,1766505041718,-500.0,0.00016438,2]
[399570155,1766505041728,-500.0,0.00016438,2]
[399570156,1766505041737,-500.0,0.00016438,2]
[399570157,1766505041748,-500.0,0.00016438,2]
[399570158,1766505041758,-500.0,0.00016438,2]
[399570159,1766505041768,-500.0,0.00016438,2]
[399570160,1766505041778,-500.0,0.00016438,2]
[399570161,1766505041788,-500.0,0.00016438,2]
[399570162,1766505041798,-500.0,0.00016438,2]
[399570163,1766505041808,-500.0,0.00016438,2]
[399570164,1766505041817,-500.0,0.00016438,2]
[399570165,1766505041827,-500.0,0.00016438,2]
[399570166,1766505041838,-500.0,0.00016438,2]
[399570167,1766505041848,-500.0,0.00016438,2]
[399570168,1766505041858,-500.0,0.00016438,2]
[399570169,1766505041868,-500.0,0.00016438,2]
[399570170,1766505041878,-500.0,0.00016438,2]
[399570171,1766505041887,-500.0,0.00016438,2]
[399570172,1766505041899,-484.95687211,0.00016438,2]
[399570173,1766505041909,-500.0,0.00016438,2]
[399570174,1766505041918,-500.0,0.00016438,2]
[399570175,1766505041928,-500.0,0.00016438,2]
[399570176,1766505041938,-500.0,0.00016438,2]
[399570177,1766505041948,-500.0,0.00016438,2]
[399570178,1766505041958,-500.0,0.00016438,2]
[399570179,1766505041968,-500.0,0.00016438,2]
[399570180,1766505041978,-500.0,0.00016438,2]
[399570181,1766505041991,-500.0,0.00016438,2]
[399570182,1766505042001,-500.0,0.00016438,2]
[399570183,1766505042011,-500.0,0.00016438,2]
[399570184,1766505042020,-500.0,0.00016438,2]
[399570185,1766505042031,-500.0,0.00016438,2]
[399570186,1766505042041,-500.0,0.00016438,2]
[399570187,1766505042052,-500.0,0.00016438,2]
[399570188,1766505042063,-500.0,0.00016438,2]
[399570189,1766505042073,-250.0,0.00016438,2]
[399570190,1766505042083,-500.0,0.00016438,2]
[399570191,1766505042093,-500.0,0.00016438,2]
[399570192,1766505042102,-500.0,0.00016438,2]
[399570193,1766505042112,-500.0,0.00016438,2]
[399570194,1766505042122,-500.0,0.00016438,2]
[399570195,1766505042131,-500.0,0.00016438,2]
[399570196,1766505042141,-500.0,0.00016438,2]
[399570197,1766505042152,-593.22569855,0.00016438,2]
[399570198,1766505042162,-7247.57,0.00016438,2]
[399570199,1766505042172,-743.85494773,0.00016448,2]
[399570200,1766505042183,-175.2,0.00016512,2]
[399570201,1766505042192,-600.0,0.00016552,2]
[399570202,1766505042202,-272.19458909,0.00016598,2]
[399570203,1766505042212,-385.52052788,0.00016598,2]
[399570204,1766505042222,-595.37131296,0.00016604,2]
[399570205,1766505042232,-166.66,0.00016617,2]
[399570206,1766505042242,-174.93,0.0001664,2]
[399570207,1766505042252,-5198.79455168,0.0001666,2]
[399570208,1766505042262,-5000.0,0.00016712,2]
[399570209,1766505042272,-165.52,0.00016712,2]
[399570210,1766505042282,-1000.0,0.00016771,2]
[399570212,1766505042292,-600.0,0.00016826,2]
[399570214,1766505042302,-926.45060488,0.0001683,2]
[399570216,1766505042313,-500.0,0.00016864,2]
[399570217,1766505042323,-200.0,0.00016864,2]
[399570218,1766505042333,-1500.0,0.00016878,2]
[399570219,1766505042343,-1500.0,0.00016878,2]
[399570220,1766505042352,-743.85494773,0.000169,2]
[399570221,1766505042362,-272.19458909,0.000169,2]
[399570222,1766505042372,-385.52052788,0.000169,2]
[399570223,1766505042383,-511.81513334,0.000169,2]
[399570224,1766505042392,-2803.4098618,0.000169,2]
[399570225,1766505042403,-10000.0,0.000169,2]
[399570226,1766505042413,-19517.86976876,0.000169,2]
[399570227,1766505042423,-1300.44064978,0.000169,2]
[399570228,1766505042433,-4389.0,0.000169,2]
[399570229,1766505042443,-797.20615221,0.00016952,2]
[399570230,1766505042453,-3899.0,0.00016959,2]
[399570231,1766505042463,-500.0,0.00016959,2]
[399570232,1766505042474,-5000.0,0.00016986,2]
[399570233,1766505042484,-904.3243335,0.0001699,2]
[399570234,1766505042494,-904.3243335,0.0001699,2]
[399570235,1766505042504,-215.0,0.0001699,2]
[399570236,1766505042514,-1400.1606355,0.00016996,2]
[399570237,1766505042524,-2924.7909485,0.00016996,2]
[399570238,1766505042534,-520.6779713,0.00016996,2]
[399570239,1766505042544,-1069.02,0.00016998,2]
[399570240,1766505042554,-509.32,0.00016998,2]
[399570241,1766505042564,-500.0,0.00016998,2]
[399570242,1766505042574,-500.0,0.00016998,2]
[399570244,1766505042583,-183.93452706,0.00016998,2]
[399570246,1766505042593,-1069.02,0.00016999,2]
[399570247,1766505042603,-1069.02,0.00016999,2]
[399570248,1766505042613,-1069.02,0.00016999,2]
[399570249,1766505042622,-1069.02,0.00016999,2]
[399570250,1766505042632,-1069.02,0.00016999,2]
[399570251,1766505042642,-1069.02,0.00016999,2]
[399570252,1766505042653,-1069.02,0.00016999,2]
[399570253,1766505042663,-1069.02,0.00016999,2]
[399570254,1766505042673,-1069.02,0.00016999,2]
[399570255,1766505042684,-1069.02,0.00016999,2]
[399570256,1766505042694,-1069.02,0.00016999,2]
[399570257,1766505042703,-1069.02,0.00016999,2]
[399570258,1766505042714,-1069.02,0.00016999,2]
[399570259,1766505042724,-1069.02,0.00016999,2]
[399570260,1766505042733,-1069.02,0.00016999,2]
[399570261,1766505042744,-1069.02,0.00016999,2]
[399570262,1766505042754,-1069.02,0.00016999,2]
[399570263,1766505042765,-1069.22562456,0.00016999,2]
[399570264,1766505042775,-509.32,0.00016999,2]
[399570265,1766505042785,-509.32,0.00016999,2]
[399570266,1766505042795,-509.32,0.00016999,2]
[399570267,1766505042805,-509.32,0.00016999,2]
[399570268,1766505042815,-509.32,0.00016999,2]
[399570269,1766505042826,-509.32,0.00016999,2]
[399570270,1766505042836,-509.32,0.00016999,2]
[399570271,1766505042846,-509.32,0.00016999,2]
[399570272,1766505042857,-509.32,0.00016999,2]
[399570273,1766505042867,-509.32,0.00016999,2]
[399570274,1766505042877,-509.32,0.00016999,2]
[399570275,1766505042887,-509.32,0.00016999,2]
[399570276,1766505042897,-509.32,0.00016999,2]
[399570277,1766505042907,-509.32,0.00016999,2]
[399570278,1766505042917,-509.32,0.00016999,2]
[399570279,1766505042927,-509.41800734,0.00016999,2]
[399570280,1766505042937,-300.0,0.00016999,2]
[399570281,1766505042947,-1090.24693266,0.00016999,5]
[399570283,1766505042957,-1090.24693266,0.00016999,5]
[399570285,1766505042966,-1090.24693266,0.00016999,5]
[399570287,1766505042976,-300.0,0.00016999,2]
[399570288,1766505042989,-1090.24693266,0.00016999,5]
[399570290,1766505042998,-1090.24693267,0.00016999,5]
[399570292,1766505043007,-300.0,0.00016999,2]
[399570294,1766505043019,-300.0,0.00016999,2]
[399570312,1766505043029,-500.0,0.00016999,2]
[399570314,1766505043216,-500.0,0.00016999,2]
[399570315,1766505043226,-300.0,0.00016999,2]
[399570317,1766505043236,-234.17853787,0.00016999,2]
[399570319,1766505043246,-1801696.37294984,0.00017,2]
[399570320,1766505043255,-150.0,0.00017,2]
[399570322,1766505043264,-723.91271105,0.00017,2]
[399570324,1766505043274,-150.0,0.00017,2]
[399570326,1766505043284,-877.07302846,0.00017,2]
[399570327,1766505043294,-150.0,0.00017,2]
[399570329,1766505043305,-2231.84576543,0.00017,2]
[399570331,1766505043314,-150.0,0.00017,2]
[399570332,1766505043324,-708.81801898,0.00017,2]
[399570334,1766505043334,-1070809.8546596,0.00017,2]
[399570336,1766505043343,-2000.0,0.00017,2]
[399570337,1766505043353,-2000.0,0.00017,2]
[399570339,1766505043363,-1000.0,0.00017,2]
[399570341,1766505043373,-1000.0,0.00017,2]
[399570342,1766505043384,-1000.0,0.00017,2]
[399570344,1766505043394,-1000.0,0.00017,2]
[399570345,1766505043404,-1000.0,0.00017,2]
[399570346,1766505043414,-1000.0,0.00017,2]
[399570347,1766505043425,-1000.0,0.00017,2]
[399570348,1766505043434,-1000.0,0.00017,2]
[399570349,1766505043444,-1000.0,0.00017,2]
[399570350,1766505043454,-1000.0,0.00017,2]
[399570351,1766505043464,-551.455,0.00017,2]
[399570352,1766505043475,-151.0,0.00017,2]
[399570353,1766505043485,-699917.72728,0.00017,2]
[399570354,1766505044149,-1478.00457666,0.00017,2]
[399570355,1766505044161,-875.3797,0.00017,2]
[399570356,1766505044313,-1016.0235754,0.00015673,2]
[399570357,1766505044325,-5515.9764246,0.00015673,2]
[399570358,1766505044335,-84645.48934218,0.00017,2]
[399570359,1766505044346,-5769.57811357,0.00017,2]
[399570360,1766505044750,-11176.75607895,0.00017,2]
[399570361,1766505044762,-410.39994,0.00017,2]
[399570362,1766505044773,-302.0,0.00017,2]
[399570363,1766505044785,-3435.97400936,0.00017,2]
[399570364,1766505044801,-22215.37913688,0.00017,2]
[399570365,1766505044812,-482.17472298,0.00017,2]
[399570366,1766505044826,-1362609.69031674,0.00017,2]
[399570367,1766505044838,-19121.4245651,0.00017,2]
[399570389,1766505045638,-211.33012672,0.00013434,2]
[399570390,1766505045648,-149.84063211,0.00014086,2]
[399570391,1766505045660,-4156.83662609,0.00014086,2]
[399570392,1766505045671,-401.10500033,0.00014086,2]
[399570393,1766505046001,-1629.53236132,0.00014086,2]
[399570394,1766505046013,-385067.79371465,0.00014086,2]
[399570404,1766505125879,1553.56,0.00022,30]
[399570413,1766505222755,150.0,5.479e-05,2]
[399570430,1766505638332,-229.08129476,0.00012798,2]
[399570431,1766505638361,-105.42510524,0.00012897,2]
[399570434,1766505855715,29999.99,0.00022,30]
[399570452,1766506232333,-326.58769091,0.00012897,2]
[399570453,1766506232346,-767.41230909,0.00012897,2]
[399570454,1766506232356,-256.0,0.00012897,2]
[399570455,1766506232367,-3880.59,0.00012898,2]
[399570456,1766506232377,-500.0,0.00012898,2]
[399570457,1766506232388,-168.99,0.00012898,2]
[399570458,1766506232403,-573.567,0.00013804,2]
[399570459,1766506232413,-158.435,0.00013804,2]
[399570460,1766506232423,-653.2670139,0.000139,2]
[399570461,1766506232433,-150.0,0.00013985,2]
[399570462,1766506232444,-500.0,0.00013985,2]
[399570463,1766506232455,-201.61848082,0.00013985,2]
[399570464,1766506232465,-262.23578811,0.00013985,2]
[399570465,1766506232475,-500.0,0.00013985,2]
[399570466,1766506232486,-500.0,0.00013985,2]
[399570467,1766506232496,-249.28636706,0.00013985,2]
[399570468,1766506232505,-9343.50368102,0.00013986,2]
[399570469,1766506232517,-1501.99056459,0.00013986,2]
[399570470,1766506232529,-433.33559598,0.00013986,2]
[399570471,1766506232557,-684.36394183,0.00013986,2]
[399570472,1766506232569,-872.5988586,0.00013986,2]
[399570473,1766506232581,-392.94000407,0.00013986,2]
[399570474,1766506232596,-799.595,0.00013986,2]
[399570475,1766506232608,-250.3928,0.00013986,2]
[399570476,1766506232619,-427.13399201,0.00013986,2]
[399570477,1766506232631,-5197.19040461,0.00013986,2]
[399570478,1766506232643,-89386.83729118,0.00013986,2]
[399570479,1766506237700,-852.94700975,0.00013986,2]
[399570480,1766506237712,-995.77994928,0.00013986,2]
[399570481,1766506237724,-987.10060539,0.00013986,2]
[399570482,1766506237736,-759660.30972488,0.00013986,2]
[399570483,1766506237755,-23503.19671374,0.00013986,2]
[399570501,1766506240040,-104710.78386307,0.00013986,2]
[399570502,1766506240050,-1647.37,0.00014,2]
[399570503,1766506240061,-151.0,0.00014078,2]
[399570504,1766506240071,-151.0,0.00014078,2]
[399570505,1766506240081,-151.0,0.00014078,2]
[399570506,1766506240092,-151.0,0.00014078,2]
[399570507,1766506240102,-151.0,0.00014078,2]
[399570508,1766506240112,-151.0,0.00014078,2]
[399570509,1766506240123,-151.0,0.00014078,2]
[399570510,1766506240132,-500.0,0.00014085,2]
[399570512,1766506240146,-569.22562456,0.00014085,2]
[399570514,1766506240156,-500.0,0.00014085,2]
[399570516,1766506240165,-500.0,0.00014085,2]
[399570518,1766506240175,-600.0,0.00014086,2]
[399570520,1766506240187,-151.0,0.00014183,2]
[399570522,1766506240197,-1000.0,0.00014186,2]
[399570524,1766506240206,-23014.0115,0.00014186,2]
[399570526,1766506240216,-653.26701381,0.00014233,2]
[399570528,1766506240226,-500.0,0.00014285,2]
[399570530,1766506240236,-500.0,0.00014285,2]
[399570531,1766506240246,-500.0,0.00014285,2]
[399570532,1766506240255,-500.0,0.00014285,2]
[399570533,1766506240266,-500.0,0.00014285,2]
[399570534,1766506240276,-653.26701381,0.00014567,2]
[399570535,1766506240286,-600.0,0.00014634,2]
[399570536,1766506240296,-1944.63,0.00014889,2]
[399570537,1766506240306,-653.26701381,0.000149,2]
[399570538,1766506240316,-200.0,0.00015015,2]
[399570539,1766506240329,-150.0,0.00015046,2]
[399570540,1766506240339,-255.0,0.00015104,2]
[399570541,1766506240349,-600.0,0.00015182,2]
[399570542,1766506240359,-653.26701381,0.00015233,2]
[399570543,1766506240370,-151.0,0.00015517,2]
[399570544,1766506240379,-151.0,0.00015529,2]
[399570545,1766506240391,-653.26701381,0.00015567,2]
[399570546,1766506240403,-1609.0,0.00015582,2]
[399570547,1766506240414,-1263.0,0.00015582,2]
[399570548,1766506240424,-468.0,0.00015582,2]
[399570549,1766506240655,-2430.0,0.00015582,2]
[399570550,1766506240683,-4806.0,0.00015582,2]
[399570551,1766506240693,-564.0,0.00015582,2]
[399570552,1766506240703,-3493.0,0.00015582,2]
[399570553,1766506240714,-150.0,0.00015673,2]
[399570554,1766506240724,-212.0,0.00015673,2]
[399570555,1766506240734,-262.0,0.00015673,2]
[399570556,1766506240744,-150.798,0.00015673,2]
[399570557,1766506240754,-150.0,0.00015673,2]
[399570558,1766506240763,-150.455,0.00015673,2]
[399570559,1766506240773,-190.36,0.00015673,2]
[399570560,1766506240783,-150.0,0.00015673,2]
[399570561,1766506240793,-150.375,0.00015673,2]
[399570562,1766506240803,-612.0,0.00015673,2]
[399570563,1766506240814,-1669.416,0.00015673,2]
[399570564,1766506240823,-1325.885,0.00015673,2]
[399570565,1766506240833,-600.0,0.0001573,2]
[399570566,1766506240844,-500.0,0.00015783,2]
[399570567,1766506240854,-500.0,0.00015899,2]
[399570568,1766506240864,-653.26701381,0.000159,2]
[399570569,1766506240874,-1108.0,0.00016149,2]
[399570570,1766506240886,-322.6107,0.00016149,2]
[399570571,1766506240896,-574.12855637,0.00016149,2]
[399570572,1766506240907,-500.0,0.00016149,2]
[399570573,1766506240918,-500.0,0.00016149,2]
[399570574,1766506240928,-500.0,0.00016149,2]
[399570575,1766506240938,-500.0,0.00016149,2]
[399570576,1766506240948,-587.07832485,0.00016149,2]
[399570577,1766506240958,-653.26701381,0.00016233,2]
[399570578,1766506240968,-600.0,0.00016278,2]
[399570579,1766506240978,-1000.0,0.00016331,2]
[399570580,1766506240987,-500.0,0.00016438,2]
[399570581,1766506240998,-523.49568721,0.00016438,2]
[399570582,1766506241007,-500.0,0.00016438,2]
[399570583,1766506241017,-500.0,0.00016438,2]
[399570584,1766506241027,-500.0,0.00016438,2]
[399570585,1766506241037,-500.0,0.00016438,2]
[399570586,1766506241052,-1219.85,0.00016438,2]
[399570587,1766506241062,-2599.39727584,0.0001666,2]
[399570588,1766506241072,-595.37131296,0.00016697,2]
[399570589,1766506241081,-5000.0,0.00016712,2]
[399570590,1766506241091,-4721.3059483,0.00016791,2]
[399570591,1766506241101,-600.0,0.00016826,2]